bitfinex/quotes_ETHUSD_20251111
["timestamp","ask_amount","ask_price","bid_price","bid_amount"]
[1762866761128,6.63508935,3553.8,3553.7,0.4974]
[1762866761314,2.81396853,3553.7,3553.6,0.668]
[1762866761623,3.29466853,3553.7,3553.6,0.668]
[1762866761821,3.79326853,3553.7,3553.6,0.668]
[1762866763097,3.79326853,3553.7,3553.6,0.001]
[1762866763098,3.29466853,3553.7,3553.6,0.001]
[1762866763301,3.79326853,3553.7,3553.6,0.001]
[1762866765010,2.81396853,3553.7,3553.6,0.4984]
[1762866765213,2.81396853,3553.7,3553.6,0.001]
[1762866766341,2.81396853,3553.7,3553.6,0.4984]
[1762866766804,2.81396853,3553.7,3553.4,1.42544841]
[1762866766805,3.3206,3553.5,3553.4,1.42544841]
[1762866767306,3.3206,3553.5,3553.4,1.42598475]
[1762866767523,3.3206,3553.5,3553.4,1.60308475]
[1762866767716,7.11402691,3553.5,3553.4,1.42598475]
[1762866767918,2.81420611,3553.4,3553.3,0.75898475]
[1762866768147,7.11330611,3553.4,3553.3,0.75898475]
[1762866768440,2.81428531,3553.3,3553.2,0.75998475]
[1762866768642,7.11418531,3553.3,3553.2,0.001]
[1762866768847,7.78118531,3553.3,3553.2,0.001]
[1762866769047,8.04203458,3553.3,3553.2,0.001]
[1762866769408,9.30174658,3553.3,3553.2,0.001]
[1762866770539,15.64174658,3553.3,3553.2,0.001]
[1762866775579,6.12320215,3552.9,3552.8,0.001]
[1762866775742,6.78360215,3552.9,3552.8,0.001]
[1762866776070,7.25850215,3552.9,3552.8,0.001]
[1762866777136,6.78360215,3552.9,3552.8,0.001]
[1762866778049,6.58880215,3552.9,3552.8,0.001]
[1762866779179,7.06850215,3552.9,3552.8,0.001]
[1762866781370,3.3056,3552.4,3552.1,0.8522]
[1762866781765,3.3056,3552.4,3552.3,0.1781]
[1762866782181,3.3056,3552.4,3552.3,0.3552]
[1762866782356,6.12059831,3552.4,3552.3,0.001]
[1762866783075,6.61239831,3552.4,3552.3,0.001]
[1762866783277,6.12059831,3552.4,3552.3,0.001]
[1762866783683,3.3056,3552.4,3552.3,0.1781]
[1762866784775,3.3056,3552.4,3552.3,3.92560958]
[1762866785067,3.3056,3552.4,3552.3,0.3552]
[1762866786362,3.3056,3552.4,3552.3,0.1781]
[1762866786564,3.3056,3552.4,3552.3,10.66529671]
[1762866786886,3.3056,3552.4,3552.3,13.34002339]
[1762866787392,3.3056,3552.4,3552.3,5.66740725]
[1762866787689,3.3056,3552.4,3552.3,8.58300313]
[1762866787855,3.3056,3552.4,3552.3,9.59201683]
[1762866790112,3.3056,3552.4,3552.3,5.43900325]
[1762866790479,3.3056,3552.4,3552.3,2.4468257]
[1762866790811,3.3056,3552.4,3552.3,0.93561113]
[1762866792209,3.3048,3552.4,3552.3,0.75851113]
[1762866792408,3.3048,3552.4,3552.3,0.001]
[1762866792778,6.61159831,3552.4,3552.3,0.001]
[1762866793407,6.61359831,3552.4,3552.3,0.001]
[1762866794798,7.09329831,3552.4,3552.3,0.001]
[1762866795590,3.7986,3552.4,3552.3,0.001]
[1762866795979,6.61359831,3552.4,3552.3,0.001]
[1762866796209,3.7986,3552.4,3552.3,0.001]
[1762866796409,6.61359831,3552.4,3552.3,0.001]
[1762866798312,7.09329831,3552.4,3552.3,0.001]
[1762866798513,7.35412317,3552.4,3552.3,0.001]
[1762866802007,3.2908,3551.9,3551.8,0.75751113]
[1762866802518,3.2908,3551.9,3551.8,0.93461113]
[1762866803218,6.10619457,3551.9,3551.8,0.1771]
[1762866803427,3.2908,3551.9,3551.8,0.1771]
[1762866806432,3.2908,3551.9,3551.8,2.99257384]
[1762866806653,0.002,3552.4,3552.3,1.259712]
[1762866806801,0.002,3552.4,3552.3,12.81741271]
[1762866807005,0.002,3552.4,3552.3,9.24700313]
[1762866807425,0.002,3552.4,3552.3,10.09236764]
[1762866814034,0.002,3552.4,3552.3,3.65717755]
[1762866814218,0.002,3552.4,3552.3,5.9274504]
[1762866814425,0.002,3552.4,3552.3,9.67495998]
[1762866815618,0.002,3552.4,3552.3,3.11237285]
[1762866815819,0.002,3552.4,3552.3,0.665]
[1762866816318,0.0012,3552.4,3552.3,1.42289287]
[1762866816630,3.292,3552.4,3552.3,1.42289287]
[1762866817557,0.4976,3552.4,3552.3,1.42289287]
[1762866818350,0.4976,3552.4,3552.3,4.23797042]
[1762866818672,0.4976,3552.4,3552.3,1.42289287]
[1762866819545,0.9962,3552.4,3552.3,1.42289287]
[1762866820072,0.0012,3552.4,3552.3,1.42289287]
[1762866820451,0.4976,3552.4,3552.3,1.42289287]
[1762866821677,0.0012,3552.4,3552.3,1.42289287]
[1762866822176,0.0012,3552.4,3552.3,4.41507042]
[1762866822560,0.0012,3552.4,3552.3,1.59999287]
[1762866823659,0.0012,3552.4,3552.3,1.42289287]
[1762866824449,0.0012,3552.4,3552.3,4.23797042]
[1762866824744,0.0012,3552.4,3552.3,1.59999287]
[1762866825077,0.0012,3552.4,3552.3,8.16258]
[1762866825279,0.0012,3552.4,3552.3,4.58960958]
[1762866825447,0.0012,3552.4,3552.3,7.40468713]
[1762866826392,0.0012,3552.4,3552.3,8.59234798]
[1762866826949,0.0012,3552.4,3552.3,8.41524798]
[1762866827755,0.0012,3552.4,3552.3,8.59234798]
[1762866828272,0.0012,3552.4,3552.3,8.59334798]
[1762866830570,0.0012,3552.4,3552.3,8.41624798]
[1762866830772,0.0012,3552.4,3552.3,8.59334798]
[1762866830974,0.0012,3552.4,3552.3,12.99551271]
[1762866831158,0.0012,3552.4,3552.3,14.51242228]
[1762866831354,0.0012,3552.4,3552.3,14.62513754]
[1762866834103,0.0012,3552.4,3552.3,13.10822797]
[1762866837670,0.0012,3552.4,3552.3,12.93112797]
[1762866837883,0.0012,3552.4,3552.3,13.10822797]
[1762866838490,0.0012,3552.4,3552.3,12.93112797]
[1762866838988,0.0012,3552.4,3552.3,8.86956994]
[1762866840310,0.0004,3552.4,3552.3,8.86956994]
[1762866841215,0.002,3553.2,3553.1,3.21994772]
[1762866841401,0.002,3553.2,3553.1,5.32075972]
[1762866841602,0.002,3553.2,3553.1,5.49785972]
[1762866841805,0.002,3553.2,3553.1,5.32075972]
[1762866842133,0.002,3553.2,3553.1,5.43345117]
[1762866842486,0.002,3553.2,3553.1,5.6386956]
[1762866843929,0.0012,3553.8,3553.3,0.405504]
[1762866844084,0.0012,3553.8,3553.7,8.08974566]
[1762866844283,0.0012,3553.8,3553.7,8.75374566]
[1762866844703,0.0012,3553.8,3553.7,9.04350346]
[1762866845722,0.0012,3553.8,3553.7,9.26350346]
[1762866846940,1e-08,3553.9,3553.8,4.83330535]
[1762866847142,1e-08,3553.9,3553.8,5.05330535]
[1762866852225,1e-08,3553.9,3553.8,6.5603882]
[1762866853337,1e-08,3553.9,3553.8,6.67304061]
[1762866856138,0.002,3554.4,3554.3,4.47870951]
[1762866856338,0.002,3554.4,3554.3,8.78040557]
[1762866856633,0.002,3554.4,3554.3,8.75227064]
[1762866856802,0.002,3554.4,3554.3,8.86491512]
[1762866858934,0.002,3554.4,3554.3,9.86929908]
[1762866859699,0.002,3554.4,3554.3,9.5795546]
[1762866860730,0.4994,3554.4,3554.3,8.57517064]
[1762866861138,0.4994,3554.4,3554.3,9.5795546]
[1762866861543,0.4994,3554.4,3554.3,8.57517064]
[1762866862244,0.4994,3554.4,3554.3,8.57417064]
[1762866862538,0.9545,3554.4,3554.3,8.57417064]
[1762866862841,0.9545,3554.4,3554.3,3.56721585]
[1762866863042,0.9545,3554.4,3554.3,0.662]
[1762866863407,0.9545,3554.4,3553.8,0.75372234]
[1762866863603,0.4551,3554.3,3553.9,0.662]
[1762866863802,0.4974,3554.0,3553.9,3.47574092]
[1762866864245,0.9517,3554.0,3553.9,3.47574092]
[1762866865143,0.9517,3554.0,3553.9,3.47581018]
[1762866865532,0.467,3554.4,3554.3,2.81349351]
[1762866865845,0.467,3554.4,3554.3,6.90895464]
[1762866866005,0.9324,3554.4,3554.3,6.90895464]
[1762866866202,0.9324,3554.4,3554.3,0.662]
[1762866866403,0.9324,3554.4,3553.9,1.259712]
[1762866866404,0.9324,3554.4,3553.9,0.75372234]
[1762866866748,0.4654,3554.0,3553.6,0.001]
[1762866866902,0.3627,3553.7,3553.6,2.81504772]
[1762866867285,0.002,3554.4,3553.6,2.81504772]
[1762866867286,0.465,3554.2,3553.6,0.406504]
[1762866867458,0.4654,3553.7,3553.6,3.22055172]
[1762866867862,0.002,3554.4,3553.6,0.862704]
[1762866870493,0.002,3554.4,3554.3,9.03037064]
[1762866871344,0.002,3554.4,3554.3,8.57417064]
[1762866871551,0.002,3554.4,3554.3,9.03037064]
[1762866874148,0.002,3554.4,3554.3,9.04037064]
[1762866877219,0.002,3554.4,3554.3,9.15300687]
[1762866879706,0.002,3554.6,3554.5,4.4785512]
[1762866879978,1e-08,3554.9,3554.8,0.861704]
[1762866880179,1e-08,3554.9,3554.8,11.04982771]
[1762866880430,1e-08,3554.9,3554.8,11.70692771]
[1762866881073,1e-08,3554.9,3554.8,9.22867491]
[1762866881279,1e-08,3554.9,3554.8,9.88707491]
[1762866882191,0.002,3555.2,3555.1,2.81286039]
[1762866882395,0.002,3555.2,3555.1,8.79713352]
[1762866882714,0.002,3555.2,3555.1,9.25553352]
[1762866882914,0.002,3555.2,3555.1,9.67782032]
[1762866883975,0.002,3555.2,3555.1,8.79713352]
[1762866884516,0.4674,3555.2,3555.1,8.16803352]
[1762866884808,0.9324,3555.2,3555.1,8.16803352]
[1762866885375,0.9324,3555.2,3555.1,9.17673731]
[1762866885572,0.9324,3555.2,3555.1,8.57353752]
[1762866885979,0.4674,3555.2,3555.1,8.57353752]
[1762866887019,0.4674,3555.2,3555.1,10.08643197]
[1762866888117,0.4674,3555.2,3555.1,9.66103752]
[1762866888118,0.002,3555.2,3555.1,9.66103752]
[1762866888322,0.0012,3555.2,3555.1,10.08332432]
[1762866888527,0.0012,3555.2,3555.1,9.66103752]
[1762866889614,0.0012,3555.2,3555.1,11.67944348]
[1762866891208,0.0012,3555.2,3555.1,9.66103752]
[1762866891551,0.0012,3555.2,3555.1,10.08332432]
[1762866891751,0.01,3555.9,3555.1,10.08332432]
[1762866891752,0.01,3555.9,3555.8,3.21781065]
[1762866892038,0.01,3555.9,3555.8,9.02818378]
[1762866892236,0.01,3555.9,3555.8,10.53918826]
[1762866892853,0.01,3555.9,3555.8,10.08298826]
[1762866893211,0.01,3555.9,3555.8,8.57198378]
[1762866893913,0.01,3555.9,3555.8,9.02818378]
[1762866894246,0.01,3555.9,3555.8,10.53918826]
[1762866894949,0.4754,3555.9,3555.8,10.08298826]
[1762866895434,0.6207,3555.9,3555.8,10.08298826]
[1762866895748,0.4754,3555.9,3555.8,10.08298826]
[1762866896921,0.6616,3555.9,3555.8,6.64952713]
[1762866897135,1.1598,3555.9,3555.8,6.64952713]
[1762866898680,1.1618,3555.9,3555.8,6.64952713]
[1762866898885,1.1618,3555.9,3555.8,10.38873318]
[1762866900444,0.002,3556.3,3556.2,3.21749432]
[1762866900645,3.822,3556.3,3556.2,9.88571708]
[1762866900846,3.822,3556.3,3556.2,8.87741237]
[1762866901246,4.3179,3556.3,3556.2,8.87741237]
[1762866901963,3.822,3556.3,3556.2,9.36291237]
[1762866902285,3.822,3556.3,3556.2,8.87741237]
[1762866902480,3.822,3556.3,3556.2,10.87391685]
[1762866902683,3.822,3556.3,3556.2,9.36291237]
[1762866903004,3.822,3556.3,3556.2,8.87741237]
[1762866903178,4.3179,3556.3,3556.2,8.87741237]
[1762866903961,4.3179,3556.3,3556.2,8.90741237]
[1762866904379,3.822,3556.3,3556.2,8.90741237]
[1762866904696,0.002,3556.3,3556.2,8.90741237]
[1762866905255,0.4979,3556.3,3556.2,8.90741237]
[1762866906564,0.002,3556.3,3556.2,8.90741237]
[1762866907889,0.4979,3556.3,3556.2,8.90741237]
[1762866910003,0.002,3556.3,3556.2,8.90741237]
[1762866910694,0.002,3556.3,3556.2,9.88451237]
[1762866911003,0.002,3556.3,3556.2,9.39291237]
[1762866912287,0.0012,3556.3,3556.2,9.39291237]
[1762866912496,0.4971,3556.3,3556.2,8.90741237]
[1762866912707,0.9953,3556.3,3556.2,8.90741237]
[1762866913913,0.4971,3556.3,3556.2,8.90741237]
[1762866914405,0.4971,3556.3,3556.2,8.87741237]
[1762866914806,0.0012,3556.3,3556.2,9.36291237]
[1762866915613,0.4971,3556.3,3556.2,8.87741237]
[1762866915911,0.0012,3556.3,3556.2,8.87741237]
[1762866916121,0.0012,3556.3,3556.2,13.59371842]
[1762866916411,0.0012,3556.3,3556.2,13.13951567]
[1762866916615,0.0012,3556.3,3556.2,12.22562887]
[1762866916911,0.9953,3556.3,3556.2,5.13820632]
[1762866917117,4.8153,3556.3,3556.2,0.661]
[1762866917311,4.3171,3556.3,3556.2,7.21219637]
[1762866917517,4.8153,3556.3,3556.2,8.87741237]
[1762866919103,4.8153,3556.3,3556.2,5.13820632]
[1762866920193,4.8153,3556.3,3556.2,4.73270232]
[1762866920618,4.8153,3556.3,3556.2,1.920712]
[1762866920897,4.8153,3556.3,3556.0,2.17667659]
[1762866921204,0.4959,3556.1,3556.0,1.6711428]
[1762866921603,0.9941,3556.1,3556.0,4.48329128]
[1762866922127,0.4959,3556.1,3556.0,8.22249733]
[1762866922328,3.8212,3556.3,3556.0,8.22249733]
[1762866922329,3.8212,3556.3,3556.2,3.21749432]
[1762866922527,4.3194,3556.3,3556.2,9.73308896]
[1762866922729,4.8153,3556.3,3556.2,9.73308896]
[1762866923525,4.8153,3556.3,3556.2,4.47720632]
[1762866923727,4.8153,3556.3,3556.2,1.259712]
[1762866923926,4.8153,3556.3,3556.2,1.01084111]
[1762866924228,4.8153,3556.3,3556.2,6.55119637]
[1762866925301,4.8153,3556.3,3556.2,1.01071867]
[1762866925501,4.8153,3556.3,3556.1,1.01071867]
[1762866925722,0.4617,3556.2,3556.1,1.01071867]
[1762866926028,0.9434,3556.2,3556.0,4.48280376]
[1762866926220,0.1573,3556.1,3556.0,3.47208509]
[1762866926525,0.619,3556.1,3556.0,3.47208509]
[1762866926894,0.619,3556.1,3556.0,0.66]
[1762866927933,0.619,3556.1,3556.0,7.21135453]
[1762866929329,0.619,3556.1,3556.0,0.66]
[1762866930308,0.619,3556.1,3556.0,0.75756904]
[1762866930509,2.81214848,3556.0,3555.9,0.001]
[1762866930734,3.75224848,3556.0,3555.9,0.001]
[1762866931030,3.75224848,3556.0,3555.5,0.001]
[1762866931031,2.81246484,3555.6,3555.5,0.001]
[1762866931233,3.29416484,3555.6,3555.5,0.001]
[1762866931420,2.81273027,3555.3,3555.1,0.001]
[1762866931622,3.42308127,3555.2,3555.1,0.001]
[1762866934357,0.6103,3555.2,3555.1,0.001]
[1762866934838,0.6103,3555.2,3555.1,6.55306644]
[1762866935230,0.6103,3555.2,3555.1,0.001]
[1762866936244,0.6095,3555.2,3555.1,0.001]
[1762866936848,4.4295,3555.2,3555.1,0.001]
[1762866944301,3.9678,3555.2,3555.1,0.001]
[1762866944500,3.82,3555.2,3555.1,7.02686644]
[1762866944800,3.82,3555.2,3555.1,7.66336644]
[1762866945589,3.82,3555.2,3555.1,3.92416039]
[1762866945791,3.82,3555.2,3555.1,3.46136039]
[1762866948307,3.82,3555.2,3555.1,4.21628242]
[1762866948474,3.82,3555.6,3555.4,2.81261654]
[1762866948670,3.82,3555.6,3555.4,3.47161654]
[1762866948870,0.4817,3555.5,3555.4,3.47161654]
[1762866949271,3.82,3555.6,3555.5,2.81254394]
[1762866949474,3.82,3555.6,3555.5,3.69184794]
[1762866951276,3.82,3555.6,3555.5,3.21804794]
[1762866951494,3.82,3555.6,3555.5,3.28634394]
[1762866951697,3.82,3555.6,3555.5,2.81254394]
[1762866952203,4.7634,3555.6,3555.5,2.81254394]
[1762866952396,4.3037,3555.6,3555.5,2.81254394]
[1762866953011,4.3037,3555.6,3555.4,4.22651822]
[1762866953308,0.1478,3555.5,3555.4,4.22651822]
[1762866953869,3.822,3555.6,3555.5,2.81254394]
[1762866954100,3.822,3555.6,3555.5,4.04126597]
[1762866954609,3.822,3555.6,3555.5,3.74914394]
[1762866955104,3.822,3555.6,3555.5,4.15464794]
[1762866955304,3.822,3555.6,3555.5,5.41435994]
[1762866956881,3.822,3555.6,3555.5,5.96095388]
[1762866957395,3.822,3555.6,3555.5,4.95155994]
[1762866959301,3.822,3555.6,3555.5,5.41435994]
[1762866960103,3.822,3555.6,3555.5,6.93103653]
[1762866960303,3.8212,3555.6,3555.5,6.93103653]
[1762866960685,0.002,3556.0,3555.9,3.21773156]
[1762866960920,0.002,3556.0,3555.9,9.03807166]
[1762866961246,0.002,3556.0,3555.9,9.50087166]
[1762866961427,0.002,3556.0,3555.9,10.34534381]
[1762866962134,0.002,3556.0,3555.9,10.98677055]
[1762866962291,0.002,3556.0,3555.9,10.56534381]
[1762866965099,0.002,3556.4,3555.9,10.56534381]
[1762866965100,0.002,3556.4,3556.3,4.47712725]
[1762866965299,0.002,3556.4,3556.3,9.03775535]
[1762866965641,0.002,3556.4,3556.3,9.50055535]
[1762866965800,0.002,3556.4,3556.3,9.69545535]
[1762866966125,0.002,3556.7,3556.6,3.21717807]
[1762866966299,0.002,3556.7,3556.6,9.49931817]
[1762866966631,0.1987,3558.1,3556.6,9.49931817]
[1762866966632,0.1987,3558.1,3557.8,2.81072572]
[1762866966790,0.4685,3557.9,3557.8,8.15456582]
[1762866966995,1.1046,3557.9,3557.8,8.56006982]
[1762866967228,0.01,3557.9,3557.8,9.03556982]
[1762866967394,0.01,3557.9,3557.8,10.25336539]
[1762866967729,0.01,3557.9,3557.8,9.03556982]
[1762866968116,0.01,3557.9,3557.8,9.3142975]
[1762866968288,0.4685,3557.9,3557.8,5.13394172]
[1762866968490,0.4685,3557.9,3557.8,8.56006982]
[1762866968691,0.9624,3557.9,3557.8,8.56006982]
[1762866969119,1.1046,3557.9,3557.8,8.56006982]
[1762866970044,0.012,3557.9,3557.8,9.03556982]
[1762866970246,0.012,3557.9,3557.8,9.49836982]
[1762866970836,0.012,3557.9,3557.8,9.03556982]
[1762866971550,0.012,3557.9,3557.8,9.49836982]
[1762866971949,0.012,3557.9,3557.8,10.2525975]
[1762866972531,0.012,3557.9,3557.8,9.49836982]
[1762866973246,0.002,3558.3,3558.2,3.21591375]
[1762866973416,0.002,3558.3,3558.2,9.49805385]
[1762866973613,0.002,3558.3,3558.2,10.24980742]
[1762866973827,0.002,3558.3,3558.2,10.36232199]
[1762866974250,0.002,3558.3,3558.2,10.03580443]
[1762866974456,0.002,3558.3,3558.2,10.23580443]
[1762866974651,0.002,3558.3,3558.2,9.81056842]
[1762866976862,0.002,3558.3,3558.2,10.81569769]
[1762866978975,1e-08,3558.9,3558.8,3.69093993]
[1762866979270,1e-08,3558.9,3558.8,10.0399093]
[1762866979475,1e-08,3558.9,3558.8,10.5027093]
[1762866979771,0.59640001,3558.9,3558.8,4.92254793]
[1762866979930,1.09030001,3558.9,3558.8,2.112612]
[1762866980139,1.09030001,3558.9,3558.8,1.917712]
[1762866980550,1.09030001,3558.9,3558.8,0.658]
[1762866980849,1.09030001,3558.9,3558.2,0.2]
[1762866981073,0.4585,3558.3,3558.2,0.2]
[1762866981433,3.76273077,3558.3,3558.2,0.2]
[1762866981632,2.81048124,3558.2,3557.9,0.658]
[1762866981853,0.1943,3558.0,3557.9,0.658]
[1762866982370,3.49878946,3558.0,3557.0,2.81134304]
[1762866982573,0.4559,3557.6,3557.2,2.81115083]
[1762866982745,0.4559,3557.6,3557.3,1.259712]
[1762866982949,0.4585,3557.4,3557.0,2.81130806]
[1762866983136,0.4939,3557.5,3557.0,1.259712]
[1762866983137,0.4559,3557.1,3557.0,1.259712]
[1762866983335,0.4559,3557.1,3557.0,0.658]
[1762866983533,0.9498,3557.1,3557.0,0.658]
[1762866983988,0.9498,3557.1,3556.3,2.81290786]
[1762866983989,3.76108052,3557.1,3556.6,0.658]
[1762866984192,0.688,3557.0,3556.6,0.658]
[1762866984397,0.688,3557.0,3556.3,2.81290786]
[1762866984398,2.81180394,3556.5,3556.3,0.001]
[1762866984573,0.688,3557.0,3556.3,0.001]
[1762866984574,3.27033218,3556.4,3556.3,0.001]
[1762866985168,0.4585,3556.4,3556.3,0.001]
[1762866985695,3.27033218,3556.4,3556.3,0.001]
[1762866986191,3.73163218,3556.4,3556.3,0.001]
[1762866986390,2.81199032,3556.2,3556.1,0.01]
[1762866986609,3.03839032,3556.2,3556.1,0.01]
[1762866986760,0.6877,3556.2,3556.1,0.01]
[1762866987618,3.49969032,3556.2,3556.1,0.01]
[1762866988581,0.6877,3556.2,3556.1,0.01]
[1762866988855,3.49969032,3556.2,3556.1,0.01]
[1762866989857,2.81214848,3556.0,3555.5,0.001]
[1762866990192,5.18606048,3556.0,3555.5,0.001]
[1762866990493,5.64736048,3556.0,3555.5,0.001]
[1762866990696,2.81246484,3555.6,3555.5,0.001]
[1762866990856,3.04116484,3555.6,3555.5,0.001]
[1762866991056,2.81278127,3555.2,3555.1,0.001]
[1762866991272,3.92468127,3555.2,3555.1,0.001]
[1762866991473,4.38598127,3555.2,3555.1,0.001]
[1762866991900,3.72798127,3555.2,3555.1,0.001]
[1762866993493,4.38598127,3555.2,3555.1,0.001]
[1762866994804,8.60869327,3555.2,3555.1,0.001]
[1762866995007,5.64569327,3555.2,3555.1,0.001]
[1762866995995,2.81309778,3554.8,3554.7,0.001]
[1762866996175,4.30370978,3554.8,3554.7,0.001]
[1762866996375,5.17051378,3554.8,3554.7,0.001]
[1762866997480,4.07312635,3554.4,3554.3,0.001]
[1762866997679,4.47932635,3554.4,3554.3,0.001]
[1762866997981,5.59862635,3554.4,3554.3,0.001]
[1762866999601,4.94062635,3554.4,3554.3,0.001]
[1762866999796,4.94062635,3554.4,3554.1,1e-08]
[1762866999797,3.45177667,3554.2,3554.1,1e-08]
[1762867000026,4.30598467,3554.2,3554.1,1e-08]
[1762867000223,5.42528467,3554.2,3554.1,1e-08]
[1762867000413,2.81396853,3553.7,3553.6,0.001]
[1762867000621,4.96608053,3553.7,3553.6,0.001]
[1762867000798,5.42738053,3553.7,3553.6,0.001]
[1762867002839,2.81420611,3553.4,3553.3,0.001]
[1762867003025,4.48811811,3553.4,3553.3,0.001]
[1762867003332,4.94941811,3553.4,3553.3,0.001]
[1762867003547,4.07423493,3553.0,3552.3,0.001]
[1762867003706,5.60593493,3553.0,3552.3,0.001]
[1762867004102,4.07471031,3552.4,3552.3,0.001]
[1762867004301,4.97071031,3552.4,3552.3,0.001]
[1762867004502,5.83751431,3552.4,3552.3,0.001]
[1762867004740,5.83751431,3552.4,3551.5,0.001]
[1762867004741,4.07502731,3552.0,3551.5,0.001]
[1762867004910,4.97272731,3552.0,3551.5,0.001]
[1762867005118,5.43402731,3552.0,3551.5,0.001]
[1762867006041,2.81547384,3551.8,3551.5,0.001]
[1762867006207,3.22437384,3551.8,3551.5,0.001]
[1762867006408,4.34367384,3551.8,3551.5,0.001]
[1762867006603,3.68567384,3551.8,3551.5,0.001]
[1762867007443,2.129912,3551.8,3551.5,0.001]
[1762867007758,0.658,3551.9,3551.5,0.001]
[1762867007965,2.81456338,3553.0,3551.5,0.001]
[1762867007966,0.658,3551.8,3551.5,2.8167057]
[1762867008162,0.6504,3552.5,3551.7,0.4581]
[1762867008308,0.4613,3552.8,3551.8,2.81541583]
[1762867008506,0.658,3552.7,3551.7,0.4581]
[1762867008714,2.81485015,3552.6,3551.7,3.72918854]
[1762867008925,0.1891,3552.8,3551.7,0.9137]
[1762867009138,0.1891,3552.8,3551.9,2.81536831]
[1762867009139,0.658,3552.7,3551.9,2.81536831]
[1762867009358,0.658,3552.7,3552.0,2.81530987]
[1762867009558,0.658,3552.7,3551.9,2.81537118]
[1762867009709,0.658,3552.6,3551.8,3.2710617]
[1762867010053,0.658,3552.6,3551.9,3.27099457]
[1762867010206,0.658,3552.6,3551.9,0.4556]
[1762867010607,0.658,3552.6,3551.7,0.001]
[1762867010847,2.81498808,3552.5,3551.7,0.001]
[1762867011006,3.27621907,3552.5,3551.7,0.001]
[1762867011208,0.658,3552.6,3551.7,0.001]
[1762867011209,1.1193,3552.6,3551.7,0.001]
[1762867011519,2.81509091,3552.3,3551.7,0.001]
[1762867011905,1.1193,3552.6,3551.7,0.001]
[1762867012107,0.658,3552.5,3551.8,2.81541091]
[1762867012307,3.47293309,3552.5,3551.7,2.81652555]
[1762867012749,2.81500388,3552.4,3551.7,0.001]
[1762867012947,2.81501599,3552.4,3551.7,0.4566]
[1762867013117,0.658,3552.5,3551.7,0.4566]
[1762867013309,0.4613,3552.7,3551.7,0.4566]
[1762867013310,0.658,3552.4,3551.7,0.4566]
[1762867013509,3.31157384,3551.8,3551.7,0.001]
[1762867013710,0.659,3551.8,3551.7,0.001]
[1762867014145,3.97057384,3551.8,3551.7,0.001]
[1762867014351,4.43187384,3551.8,3551.7,0.001]
[1762867014522,3.97057384,3551.8,3551.7,0.001]
[1762867014921,4.43187384,3551.8,3551.7,0.001]
[1762867015121,0.4613,3552.1,3551.7,0.001]
[1762867015342,0.66,3552.0,3551.7,0.001]
[1762867015656,3.27387384,3551.8,3551.7,0.001]
[1762867016245,3.72527384,3551.8,3551.7,0.001]
[1762867016434,4.98498584,3551.8,3551.7,0.001]
[1762867017523,7.94798584,3551.8,3551.7,0.001]
[1762867018547,8.60898584,3551.8,3551.7,0.001]
[1762867019137,8.86711638,3551.8,3551.7,0.001]
[1762867020453,5.90411638,3551.8,3551.7,0.001]
[1762867020636,5.24311638,3551.8,3551.7,0.001]
[1762867020841,5.90411638,3551.8,3551.7,0.001]
[1762867022262,5.24311638,3551.8,3551.7,0.001]
[1762867022472,5.90411638,3551.8,3551.7,0.001]
[1762867022762,5.02498584,3551.8,3551.7,0.001]
[1762867022969,5.68598584,3551.8,3551.7,0.001]
[1762867023430,5.02498584,3551.8,3551.7,0.001]
[1762867023752,5.68598584,3551.8,3551.7,0.001]
[1762867023928,5.19458584,3551.8,3551.7,0.001]
[1762867024131,5.94488566,3551.8,3551.7,0.001]
[1762867024341,5.94488352,3551.8,3551.7,0.001]
[1762867024536,3.93487384,3551.8,3551.7,0.001]
[1762867025053,3.82,3551.9,3551.7,0.9808]
[1762867025254,3.82,3551.9,3551.7,0.001]
[1762867025255,2.81547384,3551.8,3551.7,0.001]
[1762867025764,3.76217384,3551.8,3551.7,0.001]
[1762867026054,5.02188584,3551.8,3551.7,0.001]
[1762867026259,5.28111693,3551.8,3551.7,0.001]
[1762867026457,12.46962093,3551.8,3551.7,0.001]
[1762867027657,2.81610813,3551.0,3549.9,0.001]
[1762867027860,8.53415522,3551.0,3549.9,0.001]
[1762867028057,6.18500871,3550.5,3549.9,0.001]
[1762867028263,3.40984671,3550.2,3550.1,1e-08]
[1762867028460,5.5917898,3550.2,3550.1,1e-08]
[1762867028766,6.0831898,3550.2,3550.1,1e-08]
[1762867029175,9.0461898,3550.2,3550.1,1e-08]
[1762867029762,6.0831898,3550.2,3550.1,1e-08]
[1762867029963,5.82395871,3550.2,3550.1,1e-08]
[1762867030176,5.41845471,3550.2,3550.1,1e-08]
[1762867030366,5.82395871,3550.2,3550.1,1e-08]
[1762867032245,5.82315871,3550.2,3550.1,1e-08]
[1762867033179,5.82315871,3550.2,3549.9,0.001]
[1762867033180,2.81825099,3548.3,3548.2,0.1729]
[1762867033384,3.48125099,3548.3,3548.2,0.1729]
[1762867033585,3.48125099,3548.3,3548.2,0.6596]
[1762867033879,0.663,3548.3,3548.2,1.1527]
[1762867034082,2.81758565,3549.2,3548.2,1.1527]
[1762867034309,2.81817157,3548.4,3548.3,0.4867]
[1762867034462,2.81833042,3548.2,3547.9,0.1661]
[1762867034988,2.81828167,3548.3,3548.1,0.4967]
[1762867035287,2.81833042,3548.2,3548.1,0.4967]
[1762867035690,0.663,3548.4,3548.1,0.4967]
[1762867035853,2.81833042,3548.2,3548.1,0.4967]
[1762867036890,0.663,3548.4,3548.1,0.4967]
[1762867037098,0.4914,3549.8,3548.3,0.4867]
[1762867037271,2.81770839,3549.0,3548.7,0.4867]